{"text_format":"1","workbook":"xlsx","n_sheets":11,"sheets":["KZP","KZP 01 - ZEMNÍ PRÁCE","KZP 02 - HYDROIZOLACE","KZP 03 - BETONOVÉ MONOLIT. KCE","KZP 04 - BETONOVÉ PREFA. KCE","KZP 05 - VNITŘNÍ KANALIZACE","KZP 06 - VNITŘNÍ VODOVOD","KZP 07 - ZDĚNÉ KONSTRUKCE","KZP 08 - VNITŘNÍ OMÍTKY","KZP 09 - OBKLADY A DLAŽBY","KZP 10 - SÁDROKARTONOVÉ KCE"],"not_rendered":{"charts":0,"images":2,"macros":1,"external_links":0,"defined_names":1,"comments":0,"pivot_tables":0},"unopened":[],"bounds":{"document_bytes":16777216,"sheet_cells":100000,"rows_first":2000,"rows_last":500,"rows_between":2000,"halvings":0,"cell_chars":16384,"cell_head_chars":4096},"cells_cut":0,"cells_raw":0,"read":"whole","date_system":"1900"}

{"sheet":"KZP","index":0,"n_rows":49,"n_cols":21,"rows_kept":49,"cut":false,"hidden":false,"merged":[[24,10,25,11],[20,10,21,11],[22,10,23,11],[18,7,19,7],[22,3,23,6],[22,7,23,7],[20,3,21,6],[20,7,21,7],[20,8,21,9],[18,8,19,9],[22,8,23,9],[24,8,25,9],[26,8,27,9],[28,7,29,7],[26,2,27,2],[26,3,27,6],[26,7,27,7],[47,17,47,19],[28,8,29,9],[30,8,31,9],[32,8,33,9],[34,8,35,9],[36,8,37,9],[38,8,39,9],[47,13,47,15],[36,10,37,11],[38,10,39,11],[47,9,47,11],[26,10,27,11],[28,10,29,11],[30,10,31,11],[32,10,33,11],[34,10,35,11],[11,3,12,11],[24,2,25,2],[24,3,25,6],[24,7,25,7],[18,1,19,1],[18,2,19,2],[22,2,23,2],[20,2,21,2],[18,3,19,6],[18,10,19,11],[20,1,39,1],[30,7,31,7],[28,2,29,2],[30,2,31,2],[30,3,31,6],[28,3,29,6],[4,2,4,4],[38,7,39,7],[32,7,33,7],[38,2,39,2],[38,3,39,6],[34,2,35,2],[34,3,35,6],[36,2,37,2],[36,3,37,6],[36,7,37,7],[34,7,35,7],[32,2,33,2],[32,3,33,6],[8,1,9,2],[8,3,9,3],[11,1,12,2]]}
[]
[]
[]
[]
[null,"VYPLNIT",{"$f":"\"Vyplněné buňky se propisují na každý list.\"","v":"Vyplněné buňky se propisují na každý list."},null,null,null,null,null,null,null,null,null,null,null,null,null,null,null,null,null,"KZP 01 - ZEMNÍ PRÁCE"]
[null,null,null,null,null,null,null,null,null,null,null,null,null,null,null,null,null,null,null,null,"KZP 02 - HYDROIZOLACE"]
[null,null,null,null,null,null,null,null,null,null,null,null,null,null,null,null,null,null,null,null,"KZP 03 - BETONOVÉ MONOLIT. KCE"]
[null,null,null,null,null,null,null,null,null,null,null,null,null,null,null,null,null,null,null,null,"KZP 04 - BETONOVÉ PREFA. KCE"]
[null,{"$f":"\" Číslo zakázky:\"","v":" Číslo zakázky:"},null,"00000000",null,null,null,null,null,null,null,null,null,null,null,null,null,null,null,null,"KZP 05 - VNITŘNÍ KANALIZACE"]
[null,null,null,null,null,null,null,null,null,null,null,null,null,null,null,null,null,null,null,null,"KZP 06 - VNITŘNÍ VODOVOD"]
[null,null,null,null,null,null,null,null,null,null,null,null,null,null,null,null,null,null,null,null,"KZP 07 - ZDĚNÉ KONSTRUKCE"]
[null,{"$f":"\" Název zakázky:\"","v":" Název zakázky:"},null,"---",null,null,null,null,null,null,null,null,null,null,null,null,null,null,null,null,"KZP 08 - VNITŘNÍ OMÍTKY"]
[null,null,null,null,null,null,null,null,null,null,null,null,null,null,null,null,null,null,null,null,"KZP 09 - OBKLADY A DLAŽBY"]
[null,null,null,null,null,null,null,null,null,null,null,null,null,null,null,null,null,null,null,null,"KZP 10 - SÁDROKARTONOVÉ KCE"]
[]
[]
[]
[]
[null,"Výběr","Evidenční č. KZP","Název",null,null,null,"Datum poslední aktualizace","Exportovat do PDF",null,"TISK"]
[]
[null,null,"KZP 01","ZEMNÍ PRÁCE",null,null,null,"2019-01-01"]
[]
[null,null,"KZP 02","HYDROIZOLACE",null,null,null,"2019-01-01"]
[]
[null,null,"KZP 03","BETONOVÉ MONOLITICKÉ KONSTRUKCE",null,null,null,"2019-01-01"]
[]
[null,null,"KZP 04","BETONOVÉ PREFABRIKOVANÉ KONSTRUKCE",null,null,null,"2019-01-01"]
[]
[null,null,"KZP 05","VNITŘNÍ KANALIZACE",null,null,null,"2019-01-01"]
[]
[null,null,"KZP 06","VNITŘNÍ VODOVOD",null,null,null,"2019-01-01"]
[]
[null,null,"KZP 07","ZDĚNÉ KONSTRUKCE",null,null,null,"2019-01-01"]
[]
[null,null,"KZP 08","VNITŘNÍ OMÍTKY",null,null,null,"2019-01-01"]
[]
[null,null,"KZP 09","OBKLADY A DLAŽBY",null,null,null,"2019-01-01"]
[]
[null,null,"KZP 10","SÁDROKARTONOVÉ KONSTRUKCE",null,null,null,"2019-01-01"]
[]
[]
[]
[]
[]
[]
[]
[null,null,null,null,null,null,null,null,{"$f":"\" Vypracoval za zhotovitele:\"","v":" Vypracoval za zhotovitele:"},null,null,null,{"$f":"\" Vypracoval za zhotovitele:\"","v":" Vypracoval za zhotovitele:"},null,null,null,{"$f":"\" Vypracoval za zhotovitele:\"","v":" Vypracoval za zhotovitele:"}]
[null,null,null,null,null,null,null,null,{"$f":"\" Jméno:\"","v":" Jméno:"},null,null,null,{"$f":"\" Jméno:\"","v":" Jméno:"},null,null,null,{"$f":"\" Jméno:\"","v":" Jméno:"}]
[null,null,null,null,null,null,null,null,{"$f":"\" Datum:\"","v":" Datum:"},null,{"$f":"\" Podpis:\"","v":" Podpis:"},null,{"$f":"\" Datum:\"","v":" Datum:"},null,{"$f":"\" Podpis:\"","v":" Podpis:"},null,{"$f":"\" Datum:\"","v":" Datum:"},null,{"$f":"\" Podpis:\"","v":" Podpis:"}]

{"sheet":"KZP 01 - ZEMNÍ PRÁCE","index":1,"n_rows":33,"n_cols":8,"rows_kept":33,"cut":false,"hidden":false,"merged":[[32,6,32,7],[32,4,32,5],[31,4,31,5],[1,2,1,3],[0,2,0,3],[6,0,6,7],[30,4,30,5],[30,6,30,7],[31,6,31,7]]}
[null,null,{"$f":"\" Číslo zakázky: \"&KZP!D9&\"\"","v":" Číslo zakázky: 00000000"},null,null,null,null,{"$f":"\"Poslední aktualizace: \"&TEXT(KZP!$H$21,\"dd.mm.rrrr\")&\" \"","v":"Poslední aktualizace: 01.01.2019 "}]
[null,null,{"$f":"\" Název zakázky: \"&KZP!D12&\"\"","v":" Název zakázky: ---"}]
[]
["Položka č.","Předmět kontroly/zkoušky/činnosti","Způsob provádění kontroly, metoda, rozsah","Kritéria přijatelnosti","Technické podklady","Četnost kontrol","Typ protokolu/záznamu","Odpovědný pracovník"]
["A","B","C","D","E","F","G","H"]
[]
["FÁZE PŘÍPRAVY PRACÍ a REALIZACE+"]
[1,"Příprava před zahájením prací","projektová dokumentace | inženýrsko-geologický průzkum (IGP) | geologický průzkum (GP)","vizuální kontrola | IGP/GP","---","---","protokol IGP/GP","podzhotovitel / technik"]
[2,"Vytyčení polohy stávajících inženýrských sítí","měření, vytyčení v terénu, stabilizace vytyčovaných bodů","potvrzení polohy správci sítí","---","---","zápis do SD | protokol správců sítí","podzhotovitel / správci sítí / technik"]
[3,"Vytyčení polohy výkopových prací","měření (geometrický tvar: délka, šířka, hloubka výkopu)","poloha a rozměry dle DPS","DPS","průběžně","zápis do SD | protokol o geodetickém vytyčení","podzhotovitel / geodet / technik"]
[4,"Provádění výkopových prací","rozměry výkopu, zajištění stability výkopů","poloha a rozměry dle DPS, zajištění svahováním nebo pažením (+ druh pažení)","ČSN 73 0401","průběžně","zápis do SD","podzhotovitel / technik"]
[5,"Geometrie výkopu (rýha, jáma, šachta, zářez, …)","vizuální kontrola, měření (pásmo/metr)","dno rovné, bez prohlubní a vypuklin, tolerance ±50 mm/3 m (+ 200 mm skrývka ornice)","DPS, ČSN 73 0405, ČSN ISO 4463-1,2,3, ČSN 73 6133","průběžně","zápis do SD | protokol o zaměření skutečného stavu","podzhotovitel / geodet / technik"]
[6,"Základová spára","míra zhutnění, přejímka","dle DPS, převzetí objednatelem (respektive TDI), opatření proti zamrznutí","DPS, ČSN 73 0415, ČSN 72 1006","po dokončení prací","zápis do SD | protokol o zkoušce míry zhutnění","akreditovaná laboratoř / TDI / technik"]
[7,"Provádení násypů a zásypů","vizuální kontrola, rozměry násypu/zásypu, zhutnění zeminy, mocnost vrstev","poloha a rozměry dle DPS, zajištění násypů proti sesuvu (např. hutněním), sypanina nesmí být zmrzlá ani příliš mokrá","DPS, ČSN 72 1006","průběžně","zápis do SD | protokol o zkoušce míry zhutnění","podzhotovitel / technik"]
[8,"Rozprostření ornice","vizuální kontrola, měření (metr)","dle DPS, rovinnost ±50 mm/3 m","DPS","po dokončení prací","zápis do SD","podzhotovitel / technik"]
[]
["Seznam uvedené legislativy:"]
[]
["ČSN 73 0401 - Názvosloví v geodézii a kartografii"]
["ČSN 73 0405 - Měření posunů stavebních objektů"]
["ČSN ISO 4463-1 - Měřicí metody ve výstavbě - Vytyčování a měření - Část 1: Navrhování, organizace, postupy měření a přejímací podmínky"]
["ČSN ISO 4463-2 - Měřicí metody ve výstavbě - Vytyčování a měření - Část 2: Měřické značky"]
["ČSN ISO 4463-3 - Měřicí metody ve výstavbě - Vytyčování a měření - Část 3: Kontrolní seznam geodetických a měřických služeb"]
["ČSN 73 6133 - Návrh a provádění zemního tělesa pozemních komunikací"]
["ČSN 73 0415 - Geodetické body"]
["ČSN 72 1006 - Kontrola zhutnění zemin a sypanin"]
[]
[]
[]
[]
[null,null,null,{"$f":"\" Vypracoval za zhotovitele\"","v":" Vypracoval za zhotovitele"},{"$f":"\" Schválil za zhotovitele\"","v":" Schválil za zhotovitele"},null,{"$f":"\" Schválil za podzhotovitele\"","v":" Schválil za podzhotovitele"}]
[null,null,null,{"$f":"\" Jméno: \"&IF(KZP!$J$48=\"\",\"\",KZP!$J$48)&\"\"","v":" Jméno: "},{"$f":"\" Jméno: \"&IF(KZP!$N$48=\"\",\"\",KZP!$N$48)&\"\"","v":" Jméno: "},null,{"$f":"\" Jméno: \"&IF(KZP!$R$48=\"\",\"\",KZP!$R$48)&\"\"","v":" Jméno: "}]
[null,null,null,{"$f":"\" Datum: \"&IF(KZP!$J$49>0,TEXT(KZP!$J$49,\"dd.mm.rrrr\"),\"                  \")&\"       Podpis:\"","v":" Datum:                          Podpis:"},{"$f":"\" Datum: \"&IF(KZP!$N$49>0,TEXT(KZP!$N$49,\"dd.mm.rrrr\"),\"                  \")&\"       Podpis:\"","v":" Datum:                          Podpis:"},null,{"$f":"\" Datum: \"&IF(KZP!$R$49>0,TEXT(KZP!$R$49,\"dd.mm.rrrr\"),\"                  \")&\"       Podpis:\"","v":" Datum:                          Podpis:"}]

{"sheet":"KZP 02 - HYDROIZOLACE","index":2,"n_rows":29,"n_cols":8,"rows_kept":29,"cut":false,"hidden":false,"merged":[[28,4,28,5],[28,6,28,7],[0,2,0,3],[1,2,1,3],[6,0,6,7],[26,4,26,5],[26,6,26,7],[27,4,27,5],[27,6,27,7]]}
[null,null,{"$f":"\" Číslo zakázky: \"&KZP!D9&\"\"","v":" Číslo zakázky: 00000000"},null,null,null,null,{"$f":"\"Poslední aktualizace: \"&TEXT(KZP!$H$23,\"dd.mm.rrrr\")&\" \"","v":"Poslední aktualizace: 01.01.2019 "}]
[null,null,{"$f":"\" Název zakázky: \"&KZP!D12&\"\"","v":" Název zakázky: ---"}]
[]
["Položka č.","Předmět kontroly/zkoušky/činnosti","Způsob provádění kontroly, metoda, rozsah","Kritéria přijatelnosti","Technické podklady","Četnost kontrol","Typ protokolu/záznamu","Odpovědný pracovník"]
["A","B","C","D","E","F","G","H"]
[]
["FÁZE PŘÍPRAVY PRACÍ a REALIZACE+"]
[1,"Příprava před zahájením prací","kvalita podkladu (povrch, čistota, vlhkost, teplota, rovinnost), vyhrazení prostoru pro skladování materiálu","vizuální kontrola, měření (kontrola dle technického listu výrobce), vyspravení nerovností, ubroušení ostrých výstupků, rovinnost ±5 mm/2 m","TL výrobce","před zahájením prací / průběžně","---","podzhotovitel / TDI / technik"]
[2,"Kontrola materiálu","vizuální kontrola, měření, dle DPS, dodacích listů","dle DPS","DPS / TL výrobce / ČSN P 73 0600 / ČSN EN 13707","každá dodávka / průběžně","dodací list (přejímka) | protokol o jakosti","podzhotovitel / technik"]
[3,"Penetrační nátěr","vizuální kontrola, měření","celoplošná aplikace (celistvost)","DPS","po dokončení prací","zápis do SD","podzhotovitel / technik"]
[4,"Pokládka hydroizolačních pásů","vizuální kontrola, měření","celoplošné natavení - zkouška poklepem (přítomnost dutin), kladení pásů proti spádu v případě kladení pásů ve sklonu, přesah pásů min. 100 mm, kontrola dle technického listu výrobce a požadavků DPS, pečlivé opracování detailů a prostupů (rohy, kouty, prostupy, vpusti), nesmí dojít k porušení hydroizolačních pásů, kontrola použití správného typu pásů","DPS, ČSN 73 1901 / ČSN P 73 0606","průběžně","zápis do SD (přejímka objednatele - TDI)","podzhotovitel / technik"]
[5,"Pokládka dalších vrstev pásů","vizuální kontrola, měření","viz položka č. 4, při 2 a více vrstvách posun 2. vrstvy o 500 mm (eliminace spojů nad sebou), dodržení pořadí vrstev (např.: radon - směr do interiéru, hydroizolace - směr do exteriéru)","DPS, ČSN 73 1901 / ČSN P 73 0606","průběžně","zápis do SD (přejímka objednatele - TDI)","podzhotovitel / technik"]
[6,"Kontrola těsnosti","vizuální kontrola, zátopová zkouška, celý rozsah hydroizolace","těsnost celého rozsahu hydroizolace včetně všech detailů a prostupů","ČSN P 73 0600 / ČSN EN 12317-1 / ČSN EN 13707 / ČSN 73 1901 / ČSN P 73 0606","po dokončení prací","zápis do SD","podzhotovitel / technik"]
[]
["Seznam uvedené legislativy:"]
[]
["ČSN P 73 0600 - Hydroizolace staveb - Základní ustanovení"]
["ČSN 73 1901 - Navrhování střech - Základní ustanovení"]
["ČSN EN 12317-1 - Hydroizolační pásy a fólie - Část 1: Asfaltové pásy pro hydroizolaci střech - Stanovení smykové odolnosti ve spojích"]
["ČSN EN 13707 - Hydroizolační pásy a fólie - Vyztužené asfaltové pásy pro hydroizolaci střech - Definice a charakteristiky"]
["ČSN P 73 0606 - Hydroizolace staveb - Povlakové hydroizolace - Základní ustanovení"]
[]
[]
[]
[]
[]
[null,null,null,{"$f":"\" Vypracoval za zhotovitele\"","v":" Vypracoval za zhotovitele"},{"$f":"\" Schválil za zhotovitele\"","v":" Schválil za zhotovitele"},null,{"$f":"\" Schválil za podzhotovitele\"","v":" Schválil za podzhotovitele"}]
[null,null,null,{"$f":"\" Jméno: \"&IF(KZP!$J$48=\"\",\"\",KZP!$J$48)&\"\"","v":" Jméno: "},{"$f":"\" Jméno: \"&IF(KZP!$N$48=\"\",\"\",KZP!$N$48)&\"\"","v":" Jméno: "},null,{"$f":"\" Jméno: \"&IF(KZP!$R$48=\"\",\"\",KZP!$R$48)&\"\"","v":" Jméno: "}]
[null,null,null,{"$f":"\" Datum: \"&IF(KZP!$J$49>0,TEXT(KZP!$J$49,\"dd.mm.rrrr\"),\"                  \")&\"       Podpis:\"","v":" Datum:                          Podpis:"},{"$f":"\" Datum: \"&IF(KZP!$N$49>0,TEXT(KZP!$N$49,\"dd.mm.rrrr\"),\"                  \")&\"       Podpis:\"","v":" Datum:                          Podpis:"},null,{"$f":"\" Datum: \"&IF(KZP!$R$49>0,TEXT(KZP!$R$49,\"dd.mm.rrrr\"),\"                  \")&\"       Podpis:\"","v":" Datum:                          Podpis:"}]

{"sheet":"KZP 03 - BETONOVÉ MONOLIT. KCE","index":3,"n_rows":31,"n_cols":8,"rows_kept":31,"cut":false,"hidden":false,"merged":[[30,4,30,5],[30,6,30,7],[0,2,0,3],[1,2,1,3],[6,0,6,7],[28,4,28,5],[28,6,28,7],[29,4,29,5],[29,6,29,7]]}
[null,null,{"$f":"\" Číslo zakázky: \"&KZP!D9&\"\"","v":" Číslo zakázky: 00000000"},null,null,null,null,{"$f":"\"Poslední aktualizace: \"&TEXT(KZP!$H$25,\"dd.mm.rrrr\")&\" \"","v":"Poslední aktualizace: 01.01.2019 "}]
[null,null,{"$f":"\" Název zakázky: \"&KZP!D12&\"\"","v":" Název zakázky: ---"}]
[]
["Položka č.","Předmět kontroly/zkoušky/činnosti","Způsob provádění kontroly, metoda, rozsah","Kritéria přijatelnosti","Technické podklady","Četnost kontrol","Typ protokolu/záznamu","Odpovědný pracovník"]
["A","B","C","D","E","F","G","H"]
[]
["FÁZE PŘÍPRAVY PRACÍ a REALIZACE+"]
[1,"Bednění (montáž bednění, rozměrové, směrové a výškové sestavení, otvory a prostupy, těsnost bednění, prostorová tuhost, demontáž bednění)","vizuální kontrola, měření, vytyčení, nedestruktivní zkoušení","dle DPS (poloha a rozměry ±25 mm), odbednění po dosažení požadované pevnosti betonu","DPS / ČSN EN 13670 / ČSN EN 206+A1 / ČSN 73 2810 / ČSN EN 12390-3 / ČSN 73 0210-1 / ČSN 73 0420-2 / TP","každá konstrukce / otvor / prostup","zápis do SD (přejímka)","podzhotovitel / technik"]
[2,"Výztuž (kvalita výztuže, typ/druh a profil ocele, uložení výztuže, rozměry, krytí)","vizuální kontrola, měření","dle DPS (nutný souhlas odpovědné osoby se zahájením betonáže)","DPS / ČSN EN 13670 / ČSN EN 206+A1 / ČSN EN 1992-1-1","ucelená část konstrukce","zápis do SD (přejímka)","statik / podzhotovitel / technik"]
[3,"Beton (kvalita, dodávka betonové směsi, betonáž, ochrana při zvláštních klimatických podmínkách, kontrola vzhledu, rozměr, trhliny, rovinnost, svislost)","doprava, třída betonu, ukládání a hutnění, konzistence betonové směsi, dilatační a pracovní spáry, pevnost betonu, ošetřování a ochrana betonu, vizuální kontrola, geodetické zaměření, pásmo, metr","dle DPS, průkazní zkouška (sednutí kužele, VeBe apod.), betonování za nízkých (a záporných) teplot (teplota v průběhu 3 dnů je nižší než +5°C a nejnižší teplota neklesne pod 0°C) - nutno zvýšit teplotu (podklad min. +5°C, beton min. +5°C, povrch min. 0°C, teplota povrchu betonu nesmí klesnout pod 0°C dokud pevnost betonu nedosáhne pevnosti min. 5MPa), betonování v horkém a suchém prostředí (teplota v průběhu 3 dnů je vyšší než +20°C), rovinnost cca 10-15 mm/2 m, trhliny dle statického posouzení, poloha konstrukce/prvku ±20 mm","DPS / ČSN EN 13670 / ČSN EN 206+A1 / ČSN EN 12390-3 / ČSN EN 12350-2 / ČSN EN 12350-3 / ČSN EN 12350-4 / ČSN EN 12350-5 / ČSN EN 12504-2 / TP","1/200 m3","dodací listy | protokol o jakosti | průkazní zkouška | zaměření skutečného stavu |zápis do SD","podzhotovitel / technik"]
[]
["Seznam uvedené legislativy:"]
[]
["ČSN EN 13670 - Provádění betonových konstrukcí"]
["ČSN EN 206+A1 - Beton - Specifikace, vlastnosti, výroba a shoda"]
["ČSN 73 2810 - Dřevěné stavební konstrukce. Provádění"]
["ČSN EN 12390-3 - Zkoušení ztvrdlého betonu - Část 3: Pevnost v tlaku zkušebních těles"]
["ČSN EN 1992-1-1 - Eurokód 2: Navrhování betonových konstrukcí - Část 1-1: Obecná pravidla a pravidla pro pozemní stavby"]
["ČSN EN 12350-2 – Zkoušení čerstvého betonu – Část 2: Zkouška sednutím"]
["ČSN EN 12350-3 – Zkoušení čerstvého betonu – Část 3: Zkouška Vebe"]
["ČSN EN 12350-4 – Zkoušení čerstvého betonu – Část 4: Stupeň zhutnitelnosti"]
["ČSN EN 12350-5 – Zkoušení čerstvého betonu – Část 5: Zkouška rozlitím"]
["ČSN EN 12504-2 – Zkoušení betonu v konstrukcích – Část 2: Nedestruktivní zkoušení – Stanovení tvrdosti odrazovým tvrdoměrem"]
["ČSN 73 0210-1 - Geometrická přesnost ve výstavbě. Podmínky provádění. Část 1: Přesnost osazení"]
["ČSN 73 0420-2 - Přesnost vytyčování staveb - Část 2: Vytyčovací odchylky"]
[]
[]
[]
[null,null,null,{"$f":"\" Vypracoval za zhotovitele\"","v":" Vypracoval za zhotovitele"},{"$f":"\" Schválil za zhotovitele\"","v":" Schválil za zhotovitele"},null,{"$f":"\" Schválil za podzhotovitele\"","v":" Schválil za podzhotovitele"}]
[null,null,null,{"$f":"\" Jméno: \"&IF(KZP!$J$48=\"\",\"\",KZP!$J$48)&\"\"","v":" Jméno: "},{"$f":"\" Jméno: \"&IF(KZP!$N$48=\"\",\"\",KZP!$N$48)&\"\"","v":" Jméno: "},null,{"$f":"\" Jméno: \"&IF(KZP!$R$48=\"\",\"\",KZP!$R$48)&\"\"","v":" Jméno: "}]
[null,null,null,{"$f":"\" Datum: \"&IF(KZP!$J$49>0,TEXT(KZP!$J$49,\"dd.mm.rrrr\"),\"                  \")&\"       Podpis:\"","v":" Datum:                          Podpis:"},{"$f":"\" Datum: \"&IF(KZP!$N$49>0,TEXT(KZP!$N$49,\"dd.mm.rrrr\"),\"                  \")&\"       Podpis:\"","v":" Datum:                          Podpis:"},null,{"$f":"\" Datum: \"&IF(KZP!$R$49>0,TEXT(KZP!$R$49,\"dd.mm.rrrr\"),\"                  \")&\"       Podpis:\"","v":" Datum:                          Podpis:"}]

{"sheet":"KZP 04 - BETONOVÉ PREFA. KCE","index":4,"n_rows":31,"n_cols":8,"rows_kept":31,"cut":false,"hidden":false,"merged":[[30,4,30,5],[30,6,30,7],[0,2,0,3],[1,2,1,3],[6,0,6,7],[28,4,28,5],[28,6,28,7],[29,4,29,5],[29,6,29,7]]}
[null,null,{"$f":"\" Číslo zakázky: \"&KZP!D9&\"\"","v":" Číslo zakázky: 00000000"},null,null,null,null,{"$f":"\"Poslední aktualizace: \"&TEXT(KZP!$H$27,\"dd.mm.rrrr\")&\" \"","v":"Poslední aktualizace: 01.01.2019 "}]
[null,null,{"$f":"\" Název zakázky: \"&KZP!D12&\"\"","v":" Název zakázky: ---"}]
[]
["Položka č.","Předmět kontroly/zkoušky/činnosti","Způsob provádění kontroly, metoda, rozsah","Kritéria přijatelnosti","Technické podklady","Četnost kontrol","Typ protokolu/záznamu","Odpovědný pracovník"]
["A","B","C","D","E","F","G","H"]
[]
["FÁZE PŘÍPRAVY PRACÍ a REALIZACE+"]
[1,"Kontrola materiálu (montované a montážní prvky)","vizuální kontrola, měření , rozměrové, směrové a výškové sestavení, otvory a prostupy","dodané konstrukce bez poškození dle DPS s osazenými montážními prvky","DPS","každá konstrukce","dodací list (přejímka) | protokol o jakosti","podzhotovitel / technik"]
[2,"Stavební připravenost","vizuální kontrola, geodetické zaměření konstrukcí (výškové a směrové)","geodetické zaměření, připravený podklad pro pokládku dílců","DPS / ČSN 73 0420-2","před zahájením prací","protokol o geodetickém vytyčení","podzhotovitel / geodet / technik"]
[3,"Montáž prvků","vizuální kontrola, měření, geodetické zaměření","montáž dle TP, odchylky montáží dle ČSN 73 0210-1: dílce základů - (skelet/patka - poloha, výška ±10 mm; stěny/pas - poloha, výška ±12 mm) svislé nosné konstrukce - (sloupy - poloha, výška ±10 mm; stěny - poloha ±8 mm, výška ±10 mm; sloupy, stěny - svislost ±h/200 (max. 30 mm)), vodorovné nosné konstrukce (desky - délka uložení ±12 mm, výška ±5 mm; tyčové prvky - poloha ±5 mm, výška ±5 mm), následná kontrola přesnosti montáže dle DPS","DPS / TP / ČSN 73 0210-1 / NV č. 163/2002 Sb.","každá konstrukce","protokol o geodetickém vytyčení","podzhotovitel / technik"]
[]
["Seznam uvedené legislativy:"]
[]
["ČSN 73 0210-1 - Geometrická přesnost ve výstavbě. Podmínky provádění. Část 1: Přesnost osazení"]
["ČSN 73 0420-2 - Přesnost vytyčování staveb - Část 2: Vytyčovací odchylky"]
["Nařízení vlády č. 163/2002 Sb., kterým se stanoví technické požadavky na vybrané stavební výrobky"]
[]
[]
[]
[]
[]
[]
[]
[]
[]
[]
[]
[]
[null,null,null,{"$f":"\" Vypracoval za zhotovitele\"","v":" Vypracoval za zhotovitele"},{"$f":"\" Schválil za zhotovitele\"","v":" Schválil za zhotovitele"},null,{"$f":"\" Schválil za podzhotovitele\"","v":" Schválil za podzhotovitele"}]
[null,null,null,{"$f":"\" Jméno: \"&IF(KZP!$J$48=\"\",\"\",KZP!$J$48)&\"\"","v":" Jméno: "},{"$f":"\" Jméno: \"&IF(KZP!$N$48=\"\",\"\",KZP!$N$48)&\"\"","v":" Jméno: "},null,{"$f":"\" Jméno: \"&IF(KZP!$R$48=\"\",\"\",KZP!$R$48)&\"\"","v":" Jméno: "}]
[null,null,null,{"$f":"\" Datum: \"&IF(KZP!$J$49>0,TEXT(KZP!$J$49,\"dd.mm.rrrr\"),\"                  \")&\"       Podpis:\"","v":" Datum:                          Podpis:"},{"$f":"\" Datum: \"&IF(KZP!$N$49>0,TEXT(KZP!$N$49,\"dd.mm.rrrr\"),\"                  \")&\"       Podpis:\"","v":" Datum:                          Podpis:"},null,{"$f":"\" Datum: \"&IF(KZP!$R$49>0,TEXT(KZP!$R$49,\"dd.mm.rrrr\"),\"                  \")&\"       Podpis:\"","v":" Datum:                          Podpis:"}]

{"sheet":"KZP 05 - VNITŘNÍ KANALIZACE","index":5,"n_rows":21,"n_cols":8,"rows_kept":21,"cut":false,"hidden":false,"merged":[[20,4,20,5],[20,6,20,7],[0,2,0,3],[1,2,1,3],[6,0,6,7],[18,4,18,5],[18,6,18,7],[19,4,19,5],[19,6,19,7]]}
[null,null,{"$f":"\" Číslo zakázky: \"&KZP!D9&\"\"","v":" Číslo zakázky: 00000000"},null,null,null,null,{"$f":"\"Poslední aktualizace: \"&TEXT(KZP!$H$29,\"dd.mm.rrrr\")&\" \"","v":"Poslední aktualizace: 01.01.2019 "}]
[null,null,{"$f":"\" Název zakázky: \"&KZP!D12&\"\"","v":" Název zakázky: ---"}]
[]
["Položka č.","Předmět kontroly/zkoušky/činnosti","Způsob provádění kontroly, metoda, rozsah","Kritéria přijatelnosti","Technické podklady","Četnost kontrol","Typ protokolu/záznamu","Odpovědný pracovník"]
["A","B","C","D","E","F","G","H"]
[]
["FÁZE PŘÍPRAVY PRACÍ a REALIZACE+"]
[1,"Vytyčení vnitřní kanalizace","vizuální kontrola, měření","dle DPS","DPS","---","---","podzhotovitel / technik"]
[2,"Kontrola materiálu (potrubí, tvarovky,...)","vizuální kontrola, měření , rozměry, množství","bez poškození dle DPS","DPS / NV č. 163/2002 Sb.","každá dodávka","dodací list (přejímka) | protokol o jakosti","podzhotovitel / technik"]
[3,"Stavební připravenost","vizuální kontrola, měření","dokončení konstrukcí podkladu","DPS","před zahájením prací","---","podzhotovitel / technik"]
[4,"Provádění vnitřní kanalizace","vizuální kontrola, měření, spád/sklon, uchycení, spojování, připojení na zařizovací předměty, čistící tvarovky, izolace potrubí","dle TP, sklon min. 3 % (délka potrubí do 4 m), uchycení k podkladu kotvami, přichycení do vrstev omítky, spojování a napojování dle TP (odlišnost napojování v návaznosti na použité materiály trubního vedení - plast, ocel. pozink, litina,…), umístění čistících tvarovek dle DPS, zaizolování a požární ucpávky dle DPS, kontrola napojení na zařizovací předměty a ukotvení zařizovacích předmětů","DPS / TP / ČSN 75 6760","průběžně","---","podzhotovitel / technik"]
[5,"Vodotěsnost, plynotěsnost, kamerové zkoušky","vizuální kontrola, měření, únik vody, těsnost spojů, pokles tlaku","dle ČSN 75 6760, čl. 15.3: .\nzkouška plynotěsnosti - vzduchem na utěsněném potrubí (nezakryté a nezazděné - viditelnost spojů), natlakování přes napouštěcí armaturu zkušebního víka čisticí tvarovky s tlakoměrem na hodnotu zkušebního přetlaku 400 Pa (zkouška vyhoví, jestliže po 30 minutách nedojde k poklesu víc než 50 Pa).\ndle ČSN 75 6760, čl. 15.2:\nzkouška vodotěsnosti - provádění zkoušky 1h po naplnění vodou, trvání zkoušky 30 minut, přetlak min. 10 kPa, max 50 kPa - (zkouška vyhoví, jestliže únik vody vztahující se na 1 m2 omočené vnitřní plochy potrubí a šachet nepřesahuje: a) 0,025 l pro potrubí bez vstupních nebo revizních šachet; b) 0,20 l pro potrubí vně budov včetně vstupních nebo revizních šachet).\nkontrola kamerového záznamu","ČSN 75 6760","po dokončení prací/úseku","protokol o výsledku zkoušky","podzhotovitel / technik"]
[]
["Seznam uvedené legislativy:"]
[]
["ČSN 75 6760 - Vnitřní kanalizace"]
["Nařízení vlády č. 163/2002 Sb., kterým se stanoví technické požadavky na vybrané stavební výrobky"]
[]
[null,null,null,{"$f":"\" Vypracoval za zhotovitele\"","v":" Vypracoval za zhotovitele"},{"$f":"\" Schválil za zhotovitele\"","v":" Schválil za zhotovitele"},null,{"$f":"\" Schválil za podzhotovitele\"","v":" Schválil za podzhotovitele"}]
[null,null,null,{"$f":"\" Jméno: \"&IF(KZP!$J$48=\"\",\"\",KZP!$J$48)&\"\"","v":" Jméno: "},{"$f":"\" Jméno: \"&IF(KZP!$N$48=\"\",\"\",KZP!$N$48)&\"\"","v":" Jméno: "},null,{"$f":"\" Jméno: \"&IF(KZP!$R$48=\"\",\"\",KZP!$R$48)&\"\"","v":" Jméno: "}]
[null,null,null,{"$f":"\" Datum: \"&IF(KZP!$J$49>0,TEXT(KZP!$J$49,\"dd.mm.rrrr\"),\"                  \")&\"       Podpis:\"","v":" Datum:                          Podpis:"},{"$f":"\" Datum: \"&IF(KZP!$N$49>0,TEXT(KZP!$N$49,\"dd.mm.rrrr\"),\"                  \")&\"       Podpis:\"","v":" Datum:                          Podpis:"},null,{"$f":"\" Datum: \"&IF(KZP!$R$49>0,TEXT(KZP!$R$49,\"dd.mm.rrrr\"),\"                  \")&\"       Podpis:\"","v":" Datum:                          Podpis:"}]

{"sheet":"KZP 06 - VNITŘNÍ VODOVOD","index":6,"n_rows":22,"n_cols":8,"rows_kept":22,"cut":false,"hidden":false,"merged":[[21,4,21,5],[21,6,21,7],[0,2,0,3],[1,2,1,3],[6,0,6,7],[19,4,19,5],[19,6,19,7],[20,4,20,5],[20,6,20,7]]}
[null,null,{"$f":"\" Číslo zakázky: \"&KZP!D9&\"\"","v":" Číslo zakázky: 00000000"},null,null,null,null,{"$f":"\"Poslední aktualizace: \"&TEXT(KZP!$H$31,\"dd.mm.rrrr\")&\" \"","v":"Poslední aktualizace: 01.01.2019 "}]
[null,null,{"$f":"\" Název zakázky: \"&KZP!D12&\"\"","v":" Název zakázky: ---"}]
[]
["Položka č.","Předmět kontroly/zkoušky/činnosti","Způsob provádění kontroly, metoda, rozsah","Kritéria přijatelnosti","Technické podklady","Četnost kontrol","Typ protokolu/záznamu","Odpovědný pracovník"]
["A","B","C","D","E","F","G","H"]
[]
["FÁZE PŘÍPRAVY PRACÍ a REALIZACE+"]
[1,"Vytyčení vnitřního vodovodu","vizuální kontrola, měření","dle DPS","DPS","---","---","podzhotovitel / technik"]
[2,"Kontrola materiálu (potrubí, tvarovky, armatury...)","vizuální kontrola, měření , rozměry, množství","bez poškození dle DPS","DPS / NV č. 163/2002 Sb.","každá dodávka","dodací list (přejímka) | protokol o jakosti","podzhotovitel / technik"]
[3,"Stavební připravenost","vizuální kontrola, měření","dokončení konstrukcí podkladu","DPS","před zahájením prací","---","podzhotovitel / technik"]
[4,"Provádění vnitřního vodovodu","vizuální kontrola, měření, spád/sklon, uchycení, spojování, připojení k zařizovacím předmětům/armaturám, izolace potrubí","uchycení k podkladu kotvami, přichycení do vrstev omítky, spojování a napojování dle TP (odlišnost napojování v návaznosti na použité materiály trubního vedení), umístění čistících tvarovek dle DPS, zaizolování a požární ucpávky dle DPS, izolace pro zabránění přenosu hluku a vibrací, tepelná izolace, kontrola napojení na zařizovací předměty/armatury","DPS / TP / ČSN 75 5409","průběžně","---","podzhotovitel / technik"]
[5,"Vodotěsnost","vizuální kontrola, měření, únik vody, těsnost spojů, pokles tlaku","dle ČSN 75 5409, čl. 9.4:\na) prohlídka potrubí - nezakryté armatury, potrubí bez izolace, kontrola souladu s DPS, technickými a hygienickými předpisy, závady nutno opravit před tlakovou zkouškou\nb) tlaková zkouška potrubí - vodou nebo vzduchem (případně inertním plynem), zkouší se nezakryté potrubí, zkouška vodou: u potrubí DN ≤ 63 mm - 1,1*nejvyšší navržený přetlak (přetlak musí zůstat konstantní min. 10 minut), u potrubí > 63 mm - 0,5*nejvyšší navržený přetlak (snížený přetlak musí zůstat konstantní min. 30 minut), zkouška vzduchem: zkouší se přetlakem 250 kPa (tj. 2,5 bar), po dobu 1 hodiny nesmí přetlak klesnout o více než 20 kPa\nc) konečná tlaková zkouška - pod provozním přetlakem min. 24 hodin (max. 7 dnů), po dobu 1 hodiny nesmí přetlak klesnout o více než 20 kPa","ČSN 75 5409","po dokončení prací/úseku","protokol o výsledku zkoušky","podzhotovitel / technik"]
[]
["Seznam uvedené legislativy:"]
[]
["ČSN 75 5409 - Vnitřní vodovody"]
["ČSN 73 4108 - Hygienická zařízení a šatny"]
["Nařízení vlády č. 163/2002 Sb., kterým se stanoví technické požadavky na vybrané stavební výrobky"]
[]
[null,null,null,{"$f":"\" Vypracoval za zhotovitele\"","v":" Vypracoval za zhotovitele"},{"$f":"\" Schválil za zhotovitele\"","v":" Schválil za zhotovitele"},null,{"$f":"\" Schválil za podzhotovitele\"","v":" Schválil za podzhotovitele"}]
[null,null,null,{"$f":"\" Jméno: \"&IF(KZP!$J$48=\"\",\"\",KZP!$J$48)&\"\"","v":" Jméno: "},{"$f":"\" Jméno: \"&IF(KZP!$N$48=\"\",\"\",KZP!$N$48)&\"\"","v":" Jméno: "},null,{"$f":"\" Jméno: \"&IF(KZP!$R$48=\"\",\"\",KZP!$R$48)&\"\"","v":" Jméno: "}]
[null,null,null,{"$f":"\" Datum: \"&IF(KZP!$J$49>0,TEXT(KZP!$J$49,\"dd.mm.rrrr\"),\"                  \")&\"       Podpis:\"","v":" Datum:                          Podpis:"},{"$f":"\" Datum: \"&IF(KZP!$N$49>0,TEXT(KZP!$N$49,\"dd.mm.rrrr\"),\"                  \")&\"       Podpis:\"","v":" Datum:                          Podpis:"},null,{"$f":"\" Datum: \"&IF(KZP!$R$49>0,TEXT(KZP!$R$49,\"dd.mm.rrrr\"),\"                  \")&\"       Podpis:\"","v":" Datum:                          Podpis:"}]

{"sheet":"KZP 07 - ZDĚNÉ KONSTRUKCE","index":7,"n_rows":34,"n_cols":8,"rows_kept":34,"cut":false,"hidden":false,"merged":[[33,4,33,5],[33,6,33,7],[0,2,0,3],[1,2,1,3],[6,0,6,7],[31,4,31,5],[31,6,31,7],[32,4,32,5],[32,6,32,7]]}
[null,null,{"$f":"\" Číslo zakázky: \"&KZP!D9&\"\"","v":" Číslo zakázky: 00000000"},null,null,null,null,{"$f":"\"Poslední aktualizace: \"&TEXT(KZP!$H$33,\"dd.mm.rrrr\")&\" \"","v":"Poslední aktualizace: 01.01.2019 "}]
[null,null,{"$f":"\" Název zakázky: \"&KZP!D12&\"\"","v":" Název zakázky: ---"}]
[]
["Položka č.","Předmět kontroly/zkoušky/činnosti","Způsob provádění kontroly, metoda, rozsah","Kritéria přijatelnosti","Technické podklady","Četnost kontrol","Typ protokolu/záznamu","Odpovědný pracovník"]
["A","B","C","D","E","F","G","H"]
[]
["FÁZE PŘÍPRAVY PRACÍ a REALIZACE+"]
[1,"Příprava před zahájením prací","podklad (povrch, čistota, vlhkost, teplota), vyhrazení prostoru pro skladování materiálu","vizuální kontrola, měření","TL výrobce","před zahájením prací / průběžně","---","podzhotovitel / technik"]
[2,"Kontrola materiálu (zdící prvky, malta), skladování","vizuální kontrola, měření, dle DPS, dodacích listů","dle DPS, skladování (dle TL výrobce): suché prostředí, poloha zdících prvků","DPS / TL výrobce","každá dodávka / průběžně","dodací list (přejímka) | protokol o jakosti","podzhotovitel / technik"]
[3,"Vytyčení stěn a otvorů","dle DPS","odchylka od DPS ±10 mm","DPS / ČSN 73 0205 / ČSN 73 0420-1 / ČSN 73 0420-2","každá konstrukce","---","podzhotovitel / technik"]
[4,"Provádění zděných konstrukcí","založení, postup zdění, tloušťka spar, svislost, rovinnost, vazba zdiva, detaily, otvory, překlady, zárubně","minimální hodnota teploty pro zdění je -5 °C (podklad +10 °C, malta +15 °C), provádění dle TP, dodržování technologických záběrů apod., uložení překladů s přesahem dle TP, provázání a napojení zdiva na ostatní konstrukce (kotevní prvky, kapsy), osazení zárubní dle TP (svislost,...)","DPS / TP / ČSN EN 1996-2","každá konstrukce","---","podzhotovitel / TDI / technik"]
[5,"Geometrie zdiva","vizuální kontrola, měření, svislost, rovinnost, vazba zdiva (spárožez), detaily","svislost ±20 mm/podlaží, rovinnost ±10 mm/m, přesah vazby 0,4*výška zdiva (nebo 50 mm) vyšší z hodnot, nesmí vzniknout svislá průběžná spára, vzdálenost protilehlých stěn (odchylka ≤15 mm/4 m; ≤20 mm/8 m;...)","DPS / TP / ČSN EN 1996-2 / ČSN 73 0212-3","každá konstrukce","zápis do SD (přejímka objednatele - TDI)","podzhotovitel / TDI / technik"]
[]
["Seznam uvedené legislativy:"]
[]
["ČSN 73 2310 - Provádění zděných konstrukcí (zrušena 01.03.2010 a nahrazena ČSN EN 1996-2)"]
["ČSN EN 1996-2 - Eurokód 6: Navrhování zděných konstrukcí - Část 2: Volba materiálů, konstruování a provádění zdiva"]
["ČSN 73 0205 - Geometrická přesnost ve výstavbě. Navrhování geometrické přesnosti"]
["ČSN 73 0420-1 - Přesnost vytyčování staveb - Část 1: Základní požadavky"]
["ČSN 73 0420-2 - Přesnost vytyčování staveb - Část 2: Vytyčovací odchylky"]
["ČSN 73 0212-3 - Geometrická přesnost ve výstavbě. Kontrola přesnosti. Část 3: Pozemní stavební objekty"]
[]
[]
[]
[]
[]
[]
[]
[]
[]
[]
[null,null,null,{"$f":"\" Vypracoval za zhotovitele\"","v":" Vypracoval za zhotovitele"},{"$f":"\" Schválil za zhotovitele\"","v":" Schválil za zhotovitele"},null,{"$f":"\" Schválil za podzhotovitele\"","v":" Schválil za podzhotovitele"}]
[null,null,null,{"$f":"\" Jméno: \"&IF(KZP!$J$48=\"\",\"\",KZP!$J$48)&\"\"","v":" Jméno: "},{"$f":"\" Jméno: \"&IF(KZP!$N$48=\"\",\"\",KZP!$N$48)&\"\"","v":" Jméno: "},null,{"$f":"\" Jméno: \"&IF(KZP!$R$48=\"\",\"\",KZP!$R$48)&\"\"","v":" Jméno: "}]
[null,null,null,{"$f":"\" Datum: \"&IF(KZP!$J$49>0,TEXT(KZP!$J$49,\"dd.mm.rrrr\"),\"                  \")&\"       Podpis:\"","v":" Datum:                          Podpis:"},{"$f":"\" Datum: \"&IF(KZP!$N$49>0,TEXT(KZP!$N$49,\"dd.mm.rrrr\"),\"                  \")&\"       Podpis:\"","v":" Datum:                          Podpis:"},null,{"$f":"\" Datum: \"&IF(KZP!$R$49>0,TEXT(KZP!$R$49,\"dd.mm.rrrr\"),\"                  \")&\"       Podpis:\"","v":" Datum:                          Podpis:"}]

{"sheet":"KZP 08 - VNITŘNÍ OMÍTKY","index":8,"n_rows":28,"n_cols":8,"rows_kept":28,"cut":false,"hidden":false,"merged":[[27,4,27,5],[27,6,27,7],[0,2,0,3],[1,2,1,3],[6,0,6,7],[25,4,25,5],[25,6,25,7],[26,4,26,5],[26,6,26,7]]}
[null,null,{"$f":"\" Číslo zakázky: \"&KZP!D9&\"\"","v":" Číslo zakázky: 00000000"},null,null,null,null,{"$f":"\"Poslední aktualizace: \"&TEXT(KZP!$H$35,\"dd.mm.rrrr\")&\" \"","v":"Poslední aktualizace: 01.01.2019 "}]
[null,null,{"$f":"\" Název zakázky: \"&KZP!D12&\"\"","v":" Název zakázky: ---"}]
[]
["Položka č.","Předmět kontroly/zkoušky/činnosti","Způsob provádění kontroly, metoda, rozsah","Kritéria přijatelnosti","Technické podklady","Četnost kontrol","Typ protokolu/záznamu","Odpovědný pracovník"]
["A","B","C","D","E","F","G","H"]
[]
["FÁZE PŘÍPRAVY PRACÍ a REALIZACE+"]
[1,"Vstupní materiál (maltová směs, omítky,…)","maltová směs, vizuální kontrola, měření","dle DPS, TL výrobce","DPS / TL výrobce","každá dodávka / průběžně","dodací list (přejímka) | protokol o jakosti","podzhotovitel / technik"]
[2,"Stavební připravenost","vizuální kontrola, měření, vlhkost, teplota, přídržnost podkladu","podklad pevný, zbavený prachu, mastnoty a jiných nečistot, teplota podkladu, materiálu a vzduchu min. + 5°C","---","průběžně","---","podzhotovitel / technik"]
[3,"Provádění vnitřních omítek","vizuální kontrola, měření, geometrické parametry, rovinnost, svislost, zpracování omítkové směsi","dle DPS, TP a TL (dbát doporučení výrobce omítkové směsi)\nrovinnost dle ČSN EN 13914-2, čl. 6.10.3: 5 mm / 2 m (podklad 10 mm / 2 m)\nsvislost dle ČSN 73 0205, Tabulka A.7: ± 10 mm (výška do 4,0 m), ± 12 mm (výška od 4,0 m do 8,0 m), ± 15 mm (výška od 8,0 m)\nrohy/kouty dle ČSN 73 0205, Tabulka A.7: ± 5 mm (délka místnosti do 4,0 m), ± 8 mm (délka místnosti od 4,0 m do 8,0 m), ± 10 mm (délka místnosti od 8,0 m do 16,0 m), ± 12 mm (délka místnosti nad 16,0 m)","DPS / TL výrobce / ČSN EN 13914-2 / ČSN 73 0205","průběžně / ucelený povrch","---","podzhotovitel / technik"]
[4,"Výsledný povrch","vizuální kontrola, estetický vjem, charakteristiky viditelného povrchu, přídržnost","povrch bez trhlin (kromě vlasových trhlinek vzniklých smrštěním malty) a estetických vad, vrstva omítky musí být pevně spojena s omítaným povrchem","ČSN 73 2577","ucelený povrch","zápis do SD (přejímka objednatele - TDI)","podzhotovitel / technik"]
[]
["Seznam uvedené legislativy:"]
[]
["ČSN 73 2577 - Zkouška přídržnosti povrchové úpravy stavebních konstrukcí k podkladu"]
["ČSN EN 13914-2 - Navrhování, příprava a provádění vnějších a vnitřních omítek - Část 2: Vnitřní omítky"]
["ČSN 73 0205 - Geometrická přesnost ve výstavbě. Navrhování geometrické přesnosti"]
[]
[]
[]
[]
[]
[]
[]
[]
[null,null,null,{"$f":"\" Vypracoval za zhotovitele\"","v":" Vypracoval za zhotovitele"},{"$f":"\" Schválil za zhotovitele\"","v":" Schválil za zhotovitele"},null,{"$f":"\" Schválil za podzhotovitele\"","v":" Schválil za podzhotovitele"}]
[null,null,null,{"$f":"\" Jméno: \"&IF(KZP!$J$48=\"\",\"\",KZP!$J$48)&\"\"","v":" Jméno: "},{"$f":"\" Jméno: \"&IF(KZP!$N$48=\"\",\"\",KZP!$N$48)&\"\"","v":" Jméno: "},null,{"$f":"\" Jméno: \"&IF(KZP!$R$48=\"\",\"\",KZP!$R$48)&\"\"","v":" Jméno: "}]
[null,null,null,{"$f":"\" Datum: \"&IF(KZP!$J$49>0,TEXT(KZP!$J$49,\"dd.mm.rrrr\"),\"                  \")&\"       Podpis:\"","v":" Datum:                          Podpis:"},{"$f":"\" Datum: \"&IF(KZP!$N$49>0,TEXT(KZP!$N$49,\"dd.mm.rrrr\"),\"                  \")&\"       Podpis:\"","v":" Datum:                          Podpis:"},null,{"$f":"\" Datum: \"&IF(KZP!$R$49>0,TEXT(KZP!$R$49,\"dd.mm.rrrr\"),\"                  \")&\"       Podpis:\"","v":" Datum:                          Podpis:"}]

{"sheet":"KZP 09 - OBKLADY A DLAŽBY","index":9,"n_rows":30,"n_cols":8,"rows_kept":30,"cut":false,"hidden":false,"merged":[[29,4,29,5],[29,6,29,7],[0,2,0,3],[1,2,1,3],[6,0,6,7],[27,4,27,5],[27,6,27,7],[28,4,28,5],[28,6,28,7]]}
[null,null,{"$f":"\" Číslo zakázky: \"&KZP!D9&\"\"","v":" Číslo zakázky: 00000000"},null,null,null,null,{"$f":"\"Poslední aktualizace: \"&TEXT(KZP!$H$37,\"dd.mm.rrrr\")&\" \"","v":"Poslední aktualizace: 01.01.2019 "}]
[null,null,{"$f":"\" Název zakázky: \"&KZP!D12&\"\"","v":" Název zakázky: ---"}]
[]
["Položka č.","Předmět kontroly/zkoušky/činnosti","Způsob provádění kontroly, metoda, rozsah","Kritéria přijatelnosti","Technické podklady","Četnost kontrol","Typ protokolu/záznamu","Odpovědný pracovník"]
["A","B","C","D","E","F","G","H"]
[]
["FÁZE PŘÍPRAVY PRACÍ a REALIZACE+"]
[1,"Kontrola materiálu (prvky/dílce , lepidlo/malta)","vizuální kontrola, měření, dle DPS, dodacích listů","dle DPS, skladování (dle TL výrobce - suché prostředí)","DPS / TL výrobce","každá dodávka / průběžně","dodací list (přejímka) | protokol o jakosti","podzhotovitel / technik"]
[2,"Stavební připravenost","vizuální kontrola, teploměr","teplota min. +5 °C, podklad suchý, nosný, soudržný, zbavený nečistot (prach, mastnota, ...)","ČSN 74 4505 / ČSN 73 3451","před zahájením prací","---","podzhotovitel / technik"]
[3,"Lepení obkladových prvků","vizuální kontrola, rozdělání lepidla, zpracování","dle technického listu","TL výrobce","průběžně","---","podzhotovitel / technik"]
[4,"Geometrické parametry","rovinnost, vodorovnost, svislost, spáry","rovinnost ±3 mm/2 m, vodorovnost ± L/600 (L = naměřená délka mezi pevnými body v mm), svislost ± h/600 (h = stanovená výška stěny), rovnoměrná a pravidelná šířka spár","DPS / ČSN 74 4505 / ČSN 73 3451","průběžně","---","podzhotovitel / technik"]
[5,"Výsledný povrch","vizuální kontrola (z výšky 1,6 m), kontrola poklepem, detaily","povrch bez trhlin a rýh, bez dutého zvuku, detaily a prostupy dle DPS","ČSN 74 4505","po dokončení prací","zápis do SD (přejímka objednatele - TDI)","podzhotovitel / technik"]
[]
["Seznam uvedené legislativy:"]
[]
["ČSN 74 4505 - Podlahy - Společná ustanovení"]
["ČSN 73 3451 - Obecná pravidla pro navrhování a provádění keramických obkladů"]
[]
[]
[]
[]
[]
[]
[]
[]
[]
[]
[null,null,null,{"$f":"\" Vypracoval za zhotovitele\"","v":" Vypracoval za zhotovitele"},{"$f":"\" Schválil za zhotovitele\"","v":" Schválil za zhotovitele"},null,{"$f":"\" Schválil za podzhotovitele\"","v":" Schválil za podzhotovitele"}]
[null,null,null,{"$f":"\" Jméno: \"&IF(KZP!$J$48=\"\",\"\",KZP!$J$48)&\"\"","v":" Jméno: "},{"$f":"\" Jméno: \"&IF(KZP!$N$48=\"\",\"\",KZP!$N$48)&\"\"","v":" Jméno: "},null,{"$f":"\" Jméno: \"&IF(KZP!$R$48=\"\",\"\",KZP!$R$48)&\"\"","v":" Jméno: "}]
[null,null,null,{"$f":"\" Datum: \"&IF(KZP!$J$49>0,TEXT(KZP!$J$49,\"dd.mm.rrrr\"),\"                  \")&\"       Podpis:\"","v":" Datum:                          Podpis:"},{"$f":"\" Datum: \"&IF(KZP!$N$49>0,TEXT(KZP!$N$49,\"dd.mm.rrrr\"),\"                  \")&\"       Podpis:\"","v":" Datum:                          Podpis:"},null,{"$f":"\" Datum: \"&IF(KZP!$R$49>0,TEXT(KZP!$R$49,\"dd.mm.rrrr\"),\"                  \")&\"       Podpis:\"","v":" Datum:                          Podpis:"}]

{"sheet":"KZP 10 - SÁDROKARTONOVÉ KCE","index":10,"n_rows":32,"n_cols":8,"rows_kept":32,"cut":false,"hidden":false,"merged":[[31,4,31,5],[31,6,31,7],[0,2,0,3],[1,2,1,3],[6,0,6,7],[29,4,29,5],[29,6,29,7],[30,4,30,5],[30,6,30,7]]}
[null,null,{"$f":"\" Číslo zakázky: \"&KZP!D9&\"\"","v":" Číslo zakázky: 00000000"},null,null,null,null,{"$f":"\"Poslední aktualizace: \"&TEXT(KZP!$H$39,\"dd.mm.rrrr\")&\" \"","v":"Poslední aktualizace: 01.01.2019 "}]
[null,null,{"$f":"\" Název zakázky: \"&KZP!D12&\"\"","v":" Název zakázky: ---"}]
[]
["Položka č.","Předmět kontroly/zkoušky/činnosti","Způsob provádění kontroly, metoda, rozsah","Kritéria přijatelnosti","Technické podklady","Četnost kontrol","Typ protokolu/záznamu","Odpovědný pracovník"]
["A","B","C","D","E","F","G","H"]
[]
["FÁZE PŘÍPRAVY PRACÍ a REALIZACE+"]
[1,"Příprava před zahájením prací","podklad (povrch, čistota, vlhkost, teplota), vyhrazení prostoru pro skladování materiálu","vizuální kontrola, měření","TL výrobce","před zahájením prací / průběžně","---","podzhotovitel / technik"]
[2,"Kontrola materiálu, skladování (desky, profily, kotevní prvky, drobný materiál,...)","vizuální kontrola, měření, dle DPS, dodacích listů","dle DPS, skladování (dle TL výrobce): suché prostředí, zabránění prohnutí desek","DPS / TL výrobce","každá dodávka / průběžně","dodací list (přejímka) | protokol o jakosti","podzhotovitel / technik"]
[3,"Vytyčení stěn, podhledů a otvorů","dle DPS, polohové umístění stěn, výškové poloha podhledů a otvorů","dle DPS, dodržení min. světlosti místnosti dle legislativy","ČSN 73 0205","každá konstrukce","---","podzhotovitel / technik"]
[4,"Provádění sádrokartonových konstrukcí","ukotvení, záklop, rovinnost, připevnění desek, detaily, utěsnění","dle DPS a TP, rovinnost 5 mm/2 m, vazba desek dle TL výrobce (přípustná vazba desek tvaru \"T\", nepřípustná vazba \"+\"), odsazení desek od podlahy 1 cm, max. osová vzdálenost šroubů 160 mm (stropy), 250 mm (stěny), vzdálenost šroubů od okraje desky ≥10 mm, vyplnění spar stěrkovací hmotou, přebroušení do roviny, vyztužení rohů páskou, kontrola zabudovaných prvků, použití tepelné izolace","DPS / TL výrobce","každá konstrukce","---","podzhotovitel / TDI / technik"]
[5,"Kontrola dokončených konstrukcí","vizuální kontrola, měření (poloha, svislost, rovinnost), laser, pásmo, metr, lať, detaily","dle DPS, TP a TL výrobce, dle ČSN 73 0205: vzdálenost protilehlých stěn (±15 mm/4 m, ±20 mm/8 m), svislost (±10 mm/4 m, ±12 mm/8 m)","ČSN 73 0205 / ČSN 73 0212-3","každá konstrukce","zápis do SD (přejímka objednatele - TDI)","podzhotovitel / TDI / technik"]
[]
["Seznam uvedené legislativy:"]
[]
["ČSN 73 0205 - Geometrická přesnost ve výstavbě. Navrhování geometrické přesnosti"]
["ČSN 73 0212-3 - Geometrická přesnost ve výstavbě. Kontrola přesnosti. Část 3: Pozemní stavební objekty"]
[]
[]
[]
[]
[]
[]
[]
[]
[]
[]
[]
[]
[null,null,null,{"$f":"\" Vypracoval za zhotovitele\"","v":" Vypracoval za zhotovitele"},{"$f":"\" Schválil za zhotovitele\"","v":" Schválil za zhotovitele"},null,{"$f":"\" Schválil za podzhotovitele\"","v":" Schválil za podzhotovitele"}]
[null,null,null,{"$f":"\" Jméno: \"&IF(KZP!$J$48=\"\",\"\",KZP!$J$48)&\"\"","v":" Jméno: "},{"$f":"\" Jméno: \"&IF(KZP!$N$48=\"\",\"\",KZP!$N$48)&\"\"","v":" Jméno: "},null,{"$f":"\" Jméno: \"&IF(KZP!$R$48=\"\",\"\",KZP!$R$48)&\"\"","v":" Jméno: "}]
[null,null,null,{"$f":"\" Datum: \"&IF(KZP!$J$49>0,TEXT(KZP!$J$49,\"dd.mm.rrrr\"),\"                  \")&\"       Podpis:\"","v":" Datum:                          Podpis:"},{"$f":"\" Datum: \"&IF(KZP!$N$49>0,TEXT(KZP!$N$49,\"dd.mm.rrrr\"),\"                  \")&\"       Podpis:\"","v":" Datum:                          Podpis:"},null,{"$f":"\" Datum: \"&IF(KZP!$R$49>0,TEXT(KZP!$R$49,\"dd.mm.rrrr\"),\"                  \")&\"       Podpis:\"","v":" Datum:                          Podpis:"}]